Body Name,Document Number,Service,Type of Expenditure,Invoice Date,Supplier Name,Cost to the Council (Amount Exc VAT),Month
EREWASH BOROUGH COUNCIL,18041,Fireworks Display             ,Rental of Equipment           ,10-Nov-2022, AT EVENTS SERVICES                     ,"1,591.00",Dec-22
EREWASH BOROUGH COUNCIL,17989,Homelessness                  ,Temporary Accommodation       ,10-Nov-2022,A38 WOODLANDS                           ,252.00,Dec-22
EREWASH BOROUGH COUNCIL,18936,Homelessness                  ,Temporary Accommodation       ,12-Dec-2022,A38 WOODLANDS                           ,270.00,Dec-22
EREWASH BOROUGH COUNCIL,19135,Homelessness                  ,Temporary Accommodation       ,19-Dec-2022,A38 WOODLANDS                           ,336.00,Dec-22
EREWASH BOROUGH COUNCIL,19136,Homelessness                  ,Temporary Accommodation       ,19-Dec-2022,A38 WOODLANDS                           ,336.00,Dec-22
EREWASH BOROUGH COUNCIL,19137,Homelessness                  ,Temporary Accommodation       ,19-Dec-2022,A38 WOODLANDS                           ,360.00,Dec-22
EREWASH BOROUGH COUNCIL,19137,Homelessness                  ,Temporary Accommodation       ,19-Dec-2022,A38 WOODLANDS                           ,270.00,Dec-22
EREWASH BOROUGH COUNCIL,18575,Property and Estates          ,Repairs and Maintenance       ,28-Nov-2022,ACCESS DOORS LTD                        ,260.00,Dec-22
EREWASH BOROUGH COUNCIL,16880,Housing Benefit Administration,Project Grants                ,06-Oct-2022,ADVANCED BUSINESS SOFTWARE & SOLUTIONS L,497.48,Dec-22
EREWASH BOROUGH COUNCIL,17786,Housing Benefit Administration,Project Grants                ,31-Oct-2022,ADVANCED BUSINESS SOFTWARE & SOLUTIONS L,497.48,Dec-22
EREWASH BOROUGH COUNCIL,18746,Housing Benefit Administration,Project Grants                ,30-Nov-2022,ADVANCED BUSINESS SOFTWARE & SOLUTIONS L,"2,984.86",Dec-22
EREWASH BOROUGH COUNCIL,15687,Finance                       ,Software and Implementation   ,31-Aug-2022,ADVANCED BUSINESS SOFTWARE & SOLUTIONS L,497.51,Dec-22
EREWASH BOROUGH COUNCIL,16806,Finance                       ,Software and Implementation   ,30-Sep-2022,ADVANCED BUSINESS SOFTWARE & SOLUTIONS L,497.51,Dec-22
EREWASH BOROUGH COUNCIL,18499,Green Space                   ,Materials/Consumables         ,09-Nov-2022,Agrovista Amenity Ltd                   ,"1,844.22",Dec-22
EREWASH BOROUGH COUNCIL,19123,Economic Development          ,Project Grants                ,11-Nov-2022,ALAN MCGOWAN ARCHITECTS LTD             ,"7,740.78",Dec-22
EREWASH BOROUGH COUNCIL,19195,Arts Development              ,Grants and Subscriptions      ,20-Dec-2022,ALL BEING WELL                          ,700.00,Dec-22
EREWASH BOROUGH COUNCIL,17846,Fireworks Display             ,Equipment for Hire            ,07-Nov-2022,ALPHA DRAIN SERVICES                    ,440.00,Dec-22
EREWASH BOROUGH COUNCIL,18494,Car Parking                   ,Reactive Maintenance          ,28-Nov-2022,ALPHA PARTNER (MIDLANDS)  LIMITED       ,500.00,Dec-22
EREWASH BOROUGH COUNCIL,18012,Property and Estates          ,Reactive Maintenance          ,14-Nov-2022,ALPHA PARTNER (MIDLANDS)  LIMITED       ,300.00,Dec-22
EREWASH BOROUGH COUNCIL,18017,Property and Estates          ,Reactive Maintenance          ,14-Nov-2022,ALPHA PARTNER (MIDLANDS)  LIMITED       ,380.00,Dec-22
EREWASH BOROUGH COUNCIL,18051,Property and Estates          ,Reactive Maintenance          ,14-Nov-2022,ALPHA PARTNER (MIDLANDS)  LIMITED       ,390.00,Dec-22
EREWASH BOROUGH COUNCIL,18025,Property and Estates          ,Reactive Maintenance          ,14-Nov-2022,ALPHA PARTNER (MIDLANDS)  LIMITED       ,460.00,Dec-22
EREWASH BOROUGH COUNCIL,18016,Property and Estates          ,Reactive Maintenance          ,14-Nov-2022,ALPHA PARTNER (MIDLANDS)  LIMITED       ,500.00,Dec-22
EREWASH BOROUGH COUNCIL,18023,Property and Estates          ,Reactive Maintenance          ,14-Nov-2022,ALPHA PARTNER (MIDLANDS)  LIMITED       ,500.00,Dec-22
EREWASH BOROUGH COUNCIL,18024,Property and Estates          ,Reactive Maintenance          ,14-Nov-2022,ALPHA PARTNER (MIDLANDS)  LIMITED       ,520.00,Dec-22
EREWASH BOROUGH COUNCIL,18019,Property and Estates          ,Reactive Maintenance          ,14-Nov-2022,ALPHA PARTNER (MIDLANDS)  LIMITED       ,748.00,Dec-22
EREWASH BOROUGH COUNCIL,18018,Property and Estates          ,Reactive Maintenance          ,14-Nov-2022,ALPHA PARTNER (MIDLANDS)  LIMITED       ,900.00,Dec-22
EREWASH BOROUGH COUNCIL,18555,Property and Estates          ,Reactive Maintenance          ,29-Nov-2022,ALPHA PARTNER (MIDLANDS)  LIMITED       ,337.30,Dec-22
EREWASH BOROUGH COUNCIL,18556,Property and Estates          ,Reactive Maintenance          ,29-Nov-2022,ALPHA PARTNER (MIDLANDS)  LIMITED       ,576.00,Dec-22
EREWASH BOROUGH COUNCIL,18492,Property and Estates          ,Reactive Maintenance          ,28-Nov-2022,ALPHA PARTNER (MIDLANDS)  LIMITED       ,420.00,Dec-22
EREWASH BOROUGH COUNCIL,18488,Property and Estates          ,Reactive Maintenance          ,28-Nov-2022,ALPHA PARTNER (MIDLANDS)  LIMITED       ,720.00,Dec-22
EREWASH BOROUGH COUNCIL,18470,Property and Estates          ,Reactive Maintenance          ,28-Nov-2022,ALPHA PARTNER (MIDLANDS)  LIMITED       ,875.00,Dec-22
EREWASH BOROUGH COUNCIL,18472,Property and Estates          ,Reactive Maintenance          ,28-Nov-2022,ALPHA PARTNER (MIDLANDS)  LIMITED       ,"1,404.00",Dec-22
EREWASH BOROUGH COUNCIL,18570,Property and Estates          ,Reactive Maintenance          ,28-Nov-2022,ALPHA PARTNER (MIDLANDS)  LIMITED       ,350.00,Dec-22
EREWASH BOROUGH COUNCIL,18570,Property and Estates          ,Reactive Maintenance          ,28-Nov-2022,ALPHA PARTNER (MIDLANDS)  LIMITED       ,830.00,Dec-22
EREWASH BOROUGH COUNCIL,18570,Property and Estates          ,Reactive Maintenance          ,28-Nov-2022,ALPHA PARTNER (MIDLANDS)  LIMITED       ,390.00,Dec-22
EREWASH BOROUGH COUNCIL,18570,Property and Estates          ,Reactive Maintenance          ,28-Nov-2022,ALPHA PARTNER (MIDLANDS)  LIMITED       ,310.00,Dec-22
EREWASH BOROUGH COUNCIL,18570,Property and Estates          ,Reactive Maintenance          ,28-Nov-2022,ALPHA PARTNER (MIDLANDS)  LIMITED       ,290.00,Dec-22
EREWASH BOROUGH COUNCIL,18035,ICT Support Services          ,Office Paper                  ,11-Nov-2022,ANTALIS DOCUMENT SUPPLIES               ,475.50,Dec-22
EREWASH BOROUGH COUNCIL,17795,ICT Support Services          ,Office Paper                  ,02-Nov-2022,ANTALIS DOCUMENT SUPPLIES               ,475.50,Dec-22
EREWASH BOROUGH COUNCIL,18735,ICT Support Services          ,Office Paper                  ,30-Nov-2022,ANTALIS DOCUMENT SUPPLIES               ,475.50,Dec-22
EREWASH BOROUGH COUNCIL,17291,Homelessness                  ,Temporary Accommodation       ,25-Oct-2022,ASCOT HOTEL                             ,280.00,Dec-22
EREWASH BOROUGH COUNCIL,18662,Homelessness                  ,Temporary Accommodation       ,01-Dec-2022,ASCOT HOTEL                             ,280.00,Dec-22
EREWASH BOROUGH COUNCIL,18663,Homelessness                  ,Temporary Accommodation       ,24-Nov-2022,ASCOT HOTEL                             ,280.00,Dec-22
EREWASH BOROUGH COUNCIL,18729,Transport Trading Account     ,Training                      ,18-Nov-2022,ASSOC. FOR PUBLIC SERVICE EXCELLENCE    ,289.00,Dec-22
EREWASH BOROUGH COUNCIL,17825,Fireworks Display             ,Equipment for Hire            ,05-Nov-2022,B&B AUDIO                               ,"1,100.00",Dec-22
EREWASH BOROUGH COUNCIL,18053,Ilkeston Charter Fair         ,Contracted Services           ,07-Nov-2022,B&B AUDIO                               ,765.00,Dec-22
EREWASH BOROUGH COUNCIL,18964,General Entertainment         ,Special Events                ,25-Nov-2022,B&B AUDIO                               ,"1,550.00",Dec-22
EREWASH BOROUGH COUNCIL,18964,General Entertainment         ,Special Events                ,25-Nov-2022,B&B AUDIO                               ,"1,500.00",Dec-22
EREWASH BOROUGH COUNCIL,18283,Civic Duties Hospitality      ,Remembrance Services          ,16-Nov-2022,B&B AUDIO                               ,"1,600.00",Dec-22
EREWASH BOROUGH COUNCIL,18254,Planning                      ,Structural Property Works     ,04-Nov-2022,BAILY GARNER LLP                        ,540.00,Dec-22
EREWASH BOROUGH COUNCIL,18474,Planning                      ,Structural Property Works     ,26-Aug-2022,BAILY GARNER LLP                        ,"2,292.00",Dec-22
EREWASH BOROUGH COUNCIL,18475,Planning                      ,Structural Property Works     ,28-Nov-2022,BAILY GARNER LLP                        ,"5,301.89",Dec-22
EREWASH BOROUGH COUNCIL,18739,Planning                      ,Structural Property Works     ,30-Nov-2022,BAILY GARNER LLP                        ,280.50,Dec-22
EREWASH BOROUGH COUNCIL,18953,Planning                      ,Structural Property Works     ,05-Dec-2022,BAILY GARNER LLP                        ,"1,860.00",Dec-22
EREWASH BOROUGH COUNCIL,18952,Planning                      ,Structural Property Works     ,05-Dec-2022,BAILY GARNER LLP                        ,"2,172.00",Dec-22
EREWASH BOROUGH COUNCIL,18736,Civic Accommodation Long Eaton,Cleaning Materials            ,30-Nov-2022,BANNER GROUP LIMITED                    ,503.58,Dec-22
EREWASH BOROUGH COUNCIL,18079,Street Scene                  ,Transport Insurance           ,14-Nov-2022,BARCHAM TREES PLC                       ,"4,029.00",Dec-22
EREWASH BOROUGH COUNCIL,18001,Fireworks Display             ,Materials/Consumables         ,07-Nov-2022,BRANDON HIRE STATION                    ,77.46,Dec-22
EREWASH BOROUGH COUNCIL,18001,Fireworks Display             ,Equipment for Hire            ,07-Nov-2022,BRANDON HIRE STATION                    ,"3,840.30",Dec-22
EREWASH BOROUGH COUNCIL,18558,ICT Support Services          ,General Equipment             ,22-Nov-2022,BRITISH TELECOMMUNICATIONS PLC          ,"1,625.73",Dec-22
EREWASH BOROUGH COUNCIL,19344,ICT Support Services          ,General Equipment             ,21-Dec-2022,BRITISH TELECOMMUNICATIONS PLC          ,668.00,Dec-22
EREWASH BOROUGH COUNCIL,19350,ICT Support Services          ,Data Lines                    ,22-Dec-2022,BRITISH TELECOMMUNICATIONS PLC          ,"1,746.47",Dec-22
EREWASH BOROUGH COUNCIL,18464,Planning                      ,External Property Works       ,25-Nov-2022,BROWNE JACOBSON                         ,"25,000.00",Dec-22
EREWASH BOROUGH COUNCIL,17798,Street Scene                  ,Repairs and Maintenance       ,03-Nov-2022,BUCHER MUNICIPAL LTD                    ,278.50,Dec-22
EREWASH BOROUGH COUNCIL,18091,Street Scene                  ,Repairs and Maintenance       ,15-Nov-2022,BUCHER MUNICIPAL LTD                    ,386.40,Dec-22
EREWASH BOROUGH COUNCIL,18742,Street Scene                  ,Repairs and Maintenance       ,01-Dec-2022,BUCHER MUNICIPAL LTD                    ,253.50,Dec-22
EREWASH BOROUGH COUNCIL,17986,Infec Disease & Food Poisoning,Contracted Services           ,09-Nov-2022,BUCKINGHAM FUTURES LIMITED              ,"1,942.50",Dec-22
EREWASH BOROUGH COUNCIL,18211,Infec Disease & Food Poisoning,Contracted Services           ,16-Nov-2022,BUCKINGHAM FUTURES LIMITED              ,"1,969.50",Dec-22
EREWASH BOROUGH COUNCIL,18452,Infec Disease & Food Poisoning,Contracted Services           ,23-Nov-2022,BUCKINGHAM FUTURES LIMITED              ,"1,953.30",Dec-22
EREWASH BOROUGH COUNCIL,18700,Infec Disease & Food Poisoning,Contracted Services           ,30-Nov-2022,BUCKINGHAM FUTURES LIMITED              ,"1,505.00",Dec-22
EREWASH BOROUGH COUNCIL,18903,Infec Disease & Food Poisoning,Contracted Services           ,07-Dec-2022,BUCKINGHAM FUTURES LIMITED              ,"1,693.13",Dec-22
EREWASH BOROUGH COUNCIL,17987,Urban Renewal                 ,Agency Staff                  ,09-Nov-2022,BUCKINGHAM FUTURES LIMITED              ,"1,258.00",Dec-22
EREWASH BOROUGH COUNCIL,18212,Urban Renewal                 ,Agency Staff                  ,16-Nov-2022,BUCKINGHAM FUTURES LIMITED              ,"1,258.00",Dec-22
EREWASH BOROUGH COUNCIL,18453,Urban Renewal                 ,Agency Staff                  ,23-Nov-2022,BUCKINGHAM FUTURES LIMITED              ,"1,258.00",Dec-22
EREWASH BOROUGH COUNCIL,18698,Urban Renewal                 ,Agency Staff                  ,30-Nov-2022,BUCKINGHAM FUTURES LIMITED              ,"1,230.80",Dec-22
EREWASH BOROUGH COUNCIL,18902,Urban Renewal                 ,Agency Staff                  ,07-Dec-2022,BUCKINGHAM FUTURES LIMITED              ,"1,203.03",Dec-22
EREWASH BOROUGH COUNCIL,17575,Occupational Health & Welfare ,Occupational Health Service   ,01-Nov-2022,BUPA HEALTH CLINICS                     ,435.32,Dec-22
EREWASH BOROUGH COUNCIL,18676,Occupational Health & Welfare ,Occupational Health Service   ,01-Dec-2022,BUPA HEALTH CLINICS                     ,435.32,Dec-22
EREWASH BOROUGH COUNCIL,18307,Personnel and ICT             ,Software and Implementation   ,22-Nov-2022,BUSINESS IT SUPPORT TEAM LTD            ,"3,358.50",Dec-22
EREWASH BOROUGH COUNCIL,18307,Personnel and ICT             ,Software and Implementation   ,22-Nov-2022,BUSINESS IT SUPPORT TEAM LTD            ,252.00,Dec-22
EREWASH BOROUGH COUNCIL,18550,Trees Hedges Local Nature Res ,Contracted Services           ,28-Nov-2022,CANOPY TREE SERVICES                    ,"2,570.00",Dec-22
EREWASH BOROUGH COUNCIL,17845,Personnel and ICT             ,Software and Implementation   ,07-Nov-2022,CCS MEDIA LIMITED                       ,"1,242.00",Dec-22
EREWASH BOROUGH COUNCIL,18253,EBC Balance Sheet             ,Fuel Store                    ,15-Nov-2022,CERTAS ENERGY UK LIMITED T/A CARLTON FUE,"42,195.65",Dec-22
EREWASH BOROUGH COUNCIL,17618,Infec Disease & Food Poisoning,Contracted Services           ,02-Nov-2022,CHARTERED INSTITUTE OF ENVIORNMENTAL HTH,800.00,Dec-22
EREWASH BOROUGH COUNCIL,18439,Infec Disease & Food Poisoning,Contracted Services           ,24-Nov-2022,CHARTERED INSTITUTE OF ENVIORNMENTAL HTH,800.00,Dec-22
EREWASH BOROUGH COUNCIL,17818,Revenues and Benefits         ,Software Licences             ,04-Nov-2022,CIVICA UK LIMITED                       ,"3,569.27",Dec-22
EREWASH BOROUGH COUNCIL,17827,ICT Support Services          ,Mobile Phones                 ,07-Nov-2022,CLASS AFFINITY PROJECTS LTD             ,"2,611.87",Dec-22
EREWASH BOROUGH COUNCIL,18538,Planning Policy               ,Consultants Fees              ,28-Nov-2022,CONTENT CAPTURE SERVICES LIMITED        ,425.00,Dec-22
EREWASH BOROUGH COUNCIL,19154,Civic Duties Hospitality      ,Civic Events                  ,31-Jul-2022,CONTROLLED EVENT SOLUTIONS              ,652.00,Dec-22
EREWASH BOROUGH COUNCIL,18252,Civic Duties Hospitality      ,Remembrance Services          ,14-Nov-2022,CONTROLLED EVENT SOLUTIONS              ,"1,304.00",Dec-22
EREWASH BOROUGH COUNCIL,17787,Green Space                   ,Materials/Consumables         ,01-Nov-2022,CROMWELL POLYTHENE LTD                  ,"1,314.60",Dec-22
EREWASH BOROUGH COUNCIL,18250,Street Scene                  ,Materials/Consumables         ,16-Nov-2022,CROMWELL POLYTHENE LTD                  ,784.35,Dec-22
EREWASH BOROUGH COUNCIL,18301,Street Scene                  ,Materials/Consumables         ,21-Nov-2022,CROMWELL POLYTHENE LTD                  ,734.35,Dec-22
EREWASH BOROUGH COUNCIL,17814,Green Space                   ,General Equipment             ,03-Nov-2022,CSEM TECHNOLOGIES LIMITED               ,"1,098.30",Dec-22
EREWASH BOROUGH COUNCIL,18278,Household Waste Collection    ,Repairs and Maintenance       ,16-Nov-2022,DENNIS EAGLE LTD                        ,390.80,Dec-22
EREWASH BOROUGH COUNCIL,18728,Household Waste Collection    ,Repairs and Maintenance       ,22-Nov-2022,DENNIS EAGLE LTD                        ,"1,092.50",Dec-22
EREWASH BOROUGH COUNCIL,18728,Household Waste Collection    ,Repairs and Maintenance       ,22-Nov-2022,DENNIS EAGLE LTD                        ,500.00,Dec-22
EREWASH BOROUGH COUNCIL,18533,Household Waste Collection    ,Repairs and Maintenance       ,22-Nov-2022,DENNIS EAGLE LTD                        ,"1,228.00",Dec-22
EREWASH BOROUGH COUNCIL,17832,Trade Waste                   ,Repairs and Maintenance       ,03-Nov-2022,DENNIS EAGLE LTD                        ,491.04,Dec-22
EREWASH BOROUGH COUNCIL,18075,Kerbside Recycling Collection ,Repairs and Maintenance       ,14-Nov-2022,DENNIS EAGLE LTD                        ,254.10,Dec-22
EREWASH BOROUGH COUNCIL,18733,Kerbside Recycling Collection ,Repairs and Maintenance       ,30-Nov-2022,DENNIS EAGLE LTD                        ,547.85,Dec-22
EREWASH BOROUGH COUNCIL,19219,Homelessness                  ,Miscellaneous Government Grant,20-Oct-2022,"DEPT FOR LEVELLING UP,HOUSING&COMMUNITIE","7,273.00",Dec-22
EREWASH BOROUGH COUNCIL,19113,Compensation and Pensions     ,Compensatory Added Years      ,14-Dec-2022,DERBYSHIRE COUNTY COUNCIL...            ,"18,704.28",Dec-22
EREWASH BOROUGH COUNCIL,18707,EBC Balance Sheet             ,Payroll Coll Acc Superanuation,14-Dec-2022,DERBYSHIRE COUNTY COUNCIL...            ,"178,508.28",Dec-22
EREWASH BOROUGH COUNCIL,18707,EBC Balance Sheet             ,Payroll Coll Acc Superanuation,14-Dec-2022,DERBYSHIRE COUNTY COUNCIL...            ,"83,250.00",Dec-22
EREWASH BOROUGH COUNCIL,18811,Regulatory and Housing Service,Disabled Facilities Grant     ,24-Oct-2022,DERBYSHIRE COUNTY COUNCIL...            ,"5,802.78",Dec-22
EREWASH BOROUGH COUNCIL,18483,Regulatory and Housing Service,Disabled Facilities Grant     ,12-May-2022,DERBYSHIRE COUNTY COUNCIL...            ,"5,923.89",Dec-22
EREWASH BOROUGH COUNCIL,18458,Regulatory and Housing Service,Disabled Facilities Grant     ,26-Apr-2022,DERBYSHIRE COUNTY COUNCIL...            ,"6,114.94",Dec-22
EREWASH BOROUGH COUNCIL,18462,Regulatory and Housing Service,Disabled Facilities Grant     ,16-Sep-2022,DERBYSHIRE COUNTY COUNCIL...            ,"6,325.63",Dec-22
EREWASH BOROUGH COUNCIL,18461,Regulatory and Housing Service,Disabled Facilities Grant     ,08-Sep-2022,DERBYSHIRE COUNTY COUNCIL...            ,"7,784.44",Dec-22
EREWASH BOROUGH COUNCIL,18460,Regulatory and Housing Service,Disabled Facilities Grant     ,02-Sep-2022,DERBYSHIRE COUNTY COUNCIL...            ,"29,999.99",Dec-22
EREWASH BOROUGH COUNCIL,18454,Regulatory and Housing Service,Disabled Facilities Grant     ,16-Sep-2022,DERBYSHIRE COUNTY COUNCIL...            ,"5,533.27",Dec-22
EREWASH BOROUGH COUNCIL,18898,Regulatory and Housing Service,Disabled Facilities Grant     ,03-Nov-2022,DERBYSHIRE COUNTY COUNCIL...            ,"5,644.82",Dec-22
EREWASH BOROUGH COUNCIL,19328,Regulatory and Housing Service,Disabled Facilities Grant     ,12-Oct-2022,DERBYSHIRE COUNTY COUNCIL...            ,"5,955.40",Dec-22
EREWASH BOROUGH COUNCIL,19172,Regulatory and Housing Service,Disabled Facilities Grant     ,24-Nov-2022,DERBYSHIRE COUNTY COUNCIL...            ,"5,851.00",Dec-22
EREWASH BOROUGH COUNCIL,19173,Regulatory and Housing Service,Disabled Facilities Grant     ,13-Oct-2022,DERBYSHIRE COUNTY COUNCIL...            ,"6,262.28",Dec-22
EREWASH BOROUGH COUNCIL,18938,Homelessness                  ,Homelessness Prevention Grant ,07-Dec-2022,DERBYSHIRE DALES DISTRICT COUNCIL       ,"2,000.00",Dec-22
EREWASH BOROUGH COUNCIL,17874,Revenues and Benefits         ,Postages                      ,07-Nov-2022,DSI BILLING SERVICES LTD                ,636.15,Dec-22
EREWASH BOROUGH COUNCIL,18721,Revenues and Benefits         ,Postages                      ,30-Nov-2022,DSI BILLING SERVICES LTD                ,"1,151.56",Dec-22
EREWASH BOROUGH COUNCIL,18080,Planning                      ,Structural Property Works     ,04-Nov-2022,E.ON UK ENERGY SERVICES                 ,"2,350.00",Dec-22
EREWASH BOROUGH COUNCIL,18540,Household Waste Collection    ,Repairs and Maintenance       ,28-Nov-2022,EAST MIDLANDS HYDRAULICS                ,596.45,Dec-22
EREWASH BOROUGH COUNCIL,18572,Fireworks Display             ,Security                      ,06-Nov-2022,EFFECTIVE SECURITY SERVICES LTD         ,"4,257.00",Dec-22
EREWASH BOROUGH COUNCIL,18560,Ilkeston Charter Fair         ,Security                      ,01-Nov-2022,EFFECTIVE SECURITY SERVICES LTD         ,"1,275.00",Dec-22
EREWASH BOROUGH COUNCIL,18919,Ilkeston Charter Fair         ,Security                      ,01-Nov-2022,EFFECTIVE SECURITY SERVICES LTD         ,"18,659.00",Dec-22
EREWASH BOROUGH COUNCIL,18919,Ilkeston Charter Fair         ,Security                      ,01-Nov-2022,EFFECTIVE SECURITY SERVICES LTD         ,"2,561.00",Dec-22
EREWASH BOROUGH COUNCIL,19361,General Entertainment         ,Security                      ,01-Dec-2022,EFFECTIVE SECURITY SERVICES LTD         ,605.00,Dec-22
EREWASH BOROUGH COUNCIL,19362,General Entertainment         ,Security                      ,01-Dec-2022,EFFECTIVE SECURITY SERVICES LTD         ,665.00,Dec-22
EREWASH BOROUGH COUNCIL,19196,Homelessness                  ,Spend to Save                 ,20-Dec-2022,EMH HOMES                               ,460.16,Dec-22
EREWASH BOROUGH COUNCIL,17808,Homelessness                  ,Homelessness-Lease Properties ,01-Nov-2022,EMH HOMES                               ,"1,142.62",Dec-22
EREWASH BOROUGH COUNCIL,17810,Homelessness                  ,Homelessness-Lease Properties ,01-Nov-2022,EMH HOMES                               ,"1,170.53",Dec-22
EREWASH BOROUGH COUNCIL,17809,Homelessness                  ,Homelessness-Lease Properties ,01-Nov-2022,EMH HOMES                               ,"1,240.06",Dec-22
EREWASH BOROUGH COUNCIL,18789,Homelessness                  ,Homelessness-Lease Properties ,01-Dec-2022,EMH HOMES                               ,967.62,Dec-22
EREWASH BOROUGH COUNCIL,18791,Homelessness                  ,Homelessness-Lease Properties ,01-Dec-2022,EMH HOMES                               ,"1,059.74",Dec-22
EREWASH BOROUGH COUNCIL,18790,Homelessness                  ,Homelessness-Lease Properties ,01-Dec-2022,EMH HOMES                               ,"1,161.01",Dec-22
EREWASH BOROUGH COUNCIL,19151,EBC Balance Sheet             ,Payroll Coll Acc Labour Party ,19-Dec-2022,EREWASH LABOUR GROUP                    ,521.85,Dec-22
EREWASH BOROUGH COUNCIL,18520,Trade Waste                   ,Trade Waste                   ,29-Nov-2022,EREWASH PARTNERSHIP (MANAGED WORKSPACE) ,417.29,Dec-22
EREWASH BOROUGH COUNCIL,18764,Household Waste Collection    ,Hire Charges                  ,30-Nov-2022,EUROMUNICIPAL LTD                       ,"2,100.00",Dec-22
EREWASH BOROUGH COUNCIL,18063,Household Waste Collection    ,Repairs and Maintenance       ,10-Nov-2022,EUROTRUCK MIDLANDS LTD                  ,369.00,Dec-22
EREWASH BOROUGH COUNCIL,18450,Household Waste Collection    ,Agency Staff                  ,05-Sep-2022,EXTRA PERSONNEL LTD                     ,"6,230.44",Dec-22
EREWASH BOROUGH COUNCIL,18450,Household Waste Collection    ,Agency Staff                  ,05-Sep-2022,EXTRA PERSONNEL LTD                     ,"4,153.63",Dec-22
EREWASH BOROUGH COUNCIL,18448,Household Waste Collection    ,Agency Staff                  ,22-Aug-2022,EXTRA PERSONNEL LTD                     ,"6,819.27",Dec-22
EREWASH BOROUGH COUNCIL,18448,Household Waste Collection    ,Agency Staff                  ,22-Aug-2022,EXTRA PERSONNEL LTD                     ,"4,546.18",Dec-22
EREWASH BOROUGH COUNCIL,18449,Household Waste Collection    ,Agency Staff                  ,29-Aug-2022,EXTRA PERSONNEL LTD                     ,"7,924.91",Dec-22
EREWASH BOROUGH COUNCIL,18449,Household Waste Collection    ,Agency Staff                  ,29-Aug-2022,EXTRA PERSONNEL LTD                     ,"5,283.27",Dec-22
EREWASH BOROUGH COUNCIL,17776,Household Waste Collection    ,Agency Staff                  ,31-Oct-2022,EXTRA PERSONNEL LTD                     ,576.05,Dec-22
EREWASH BOROUGH COUNCIL,17776,Household Waste Collection    ,Agency Staff                  ,31-Oct-2022,EXTRA PERSONNEL LTD                     ,384.03,Dec-22
EREWASH BOROUGH COUNCIL,18106,Household Waste Collection    ,Agency Staff                  ,14-Nov-2022,EXTRA PERSONNEL LTD                     ,679.96,Dec-22
EREWASH BOROUGH COUNCIL,18106,Household Waste Collection    ,Agency Staff                  ,14-Nov-2022,EXTRA PERSONNEL LTD                     ,453.31,Dec-22
EREWASH BOROUGH COUNCIL,17324,Household Waste Collection    ,Agency Staff                  ,25-Oct-2022,EXTRA PERSONNEL LTD                     ,688.99,Dec-22
EREWASH BOROUGH COUNCIL,17324,Household Waste Collection    ,Agency Staff                  ,25-Oct-2022,EXTRA PERSONNEL LTD                     ,459.34,Dec-22
EREWASH BOROUGH COUNCIL,18007,Household Waste Collection    ,Agency Staff                  ,07-Nov-2022,EXTRA PERSONNEL LTD                     ,"5,403.54",Dec-22
EREWASH BOROUGH COUNCIL,18007,Household Waste Collection    ,Agency Staff                  ,07-Nov-2022,EXTRA PERSONNEL LTD                     ,"3,602.36",Dec-22
EREWASH BOROUGH COUNCIL,18671,Household Waste Collection    ,Agency Staff                  ,25-Nov-2022,EXTRA PERSONNEL LTD                     ,"5,527.48",Dec-22
EREWASH BOROUGH COUNCIL,18671,Household Waste Collection    ,Agency Staff                  ,25-Nov-2022,EXTRA PERSONNEL LTD                     ,"3,685.00",Dec-22
EREWASH BOROUGH COUNCIL,18228,Household Waste Collection    ,Agency Staff                  ,18-Nov-2022,EXTRA PERSONNEL LTD                     ,"5,587.66",Dec-22
EREWASH BOROUGH COUNCIL,18228,Household Waste Collection    ,Agency Staff                  ,18-Nov-2022,EXTRA PERSONNEL LTD                     ,"3,725.10",Dec-22
EREWASH BOROUGH COUNCIL,18110,Household Waste Collection    ,Agency Staff                  ,14-Nov-2022,EXTRA PERSONNEL LTD                     ,"5,654.48",Dec-22
EREWASH BOROUGH COUNCIL,18110,Household Waste Collection    ,Agency Staff                  ,14-Nov-2022,EXTRA PERSONNEL LTD                     ,"3,769.66",Dec-22
EREWASH BOROUGH COUNCIL,17780,Household Waste Collection    ,Agency Staff                  ,31-Oct-2022,EXTRA PERSONNEL LTD                     ,"5,959.64",Dec-22
EREWASH BOROUGH COUNCIL,17780,Household Waste Collection    ,Agency Staff                  ,31-Oct-2022,EXTRA PERSONNEL LTD                     ,"3,973.09",Dec-22
EREWASH BOROUGH COUNCIL,17774,Trade Waste                   ,Agency Staff                  ,31-Oct-2022,EXTRA PERSONNEL LTD                     ,546.49,Dec-22
EREWASH BOROUGH COUNCIL,18003,Trade Waste                   ,Agency Staff                  ,07-Nov-2022,EXTRA PERSONNEL LTD                     ,546.49,Dec-22
EREWASH BOROUGH COUNCIL,19142,Trade Waste                   ,Agency Staff                  ,24-Nov-2022,EXTRA PERSONNEL LTD                     ,546.49,Dec-22
EREWASH BOROUGH COUNCIL,19143,Trade Waste                   ,Agency Staff                  ,24-Nov-2022,EXTRA PERSONNEL LTD                     ,546.49,Dec-22
EREWASH BOROUGH COUNCIL,18105,Green Space                   ,Agency Staff                  ,14-Nov-2022,EXTRA PERSONNEL LTD                     ,"1,502.97",Dec-22
EREWASH BOROUGH COUNCIL,18107,Green Space                   ,Agency Staff                  ,14-Nov-2022,EXTRA PERSONNEL LTD                     ,"2,002.41",Dec-22
EREWASH BOROUGH COUNCIL,17477,Green Space                   ,Agency Staff                  ,20-Oct-2022,EXTRA PERSONNEL LTD                     ,262.52,Dec-22
EREWASH BOROUGH COUNCIL,17777,Green Space                   ,Agency Staff                  ,31-Oct-2022,EXTRA PERSONNEL LTD                     ,"1,319.63",Dec-22
EREWASH BOROUGH COUNCIL,18008,Green Space                   ,Agency Staff                  ,07-Nov-2022,EXTRA PERSONNEL LTD                     ,"1,789.13",Dec-22
EREWASH BOROUGH COUNCIL,18005,Green Space                   ,Agency Staff                  ,07-Nov-2022,EXTRA PERSONNEL LTD                     ,"1,552.27",Dec-22
EREWASH BOROUGH COUNCIL,17779,Green Space                   ,Agency Staff                  ,31-Oct-2022,EXTRA PERSONNEL LTD                     ,"2,257.99",Dec-22
EREWASH BOROUGH COUNCIL,18226,Green Space                   ,Agency Staff                  ,18-Nov-2022,EXTRA PERSONNEL LTD                     ,"1,558.78",Dec-22
EREWASH BOROUGH COUNCIL,18225,Green Space                   ,Agency Staff                  ,18-Nov-2022,EXTRA PERSONNEL LTD                     ,"1,805.60",Dec-22
EREWASH BOROUGH COUNCIL,18669,Green Space                   ,Agency Staff                  ,25-Nov-2022,EXTRA PERSONNEL LTD                     ,"1,677.84",Dec-22
EREWASH BOROUGH COUNCIL,18668,Green Space                   ,Agency Staff                  ,25-Nov-2022,EXTRA PERSONNEL LTD                     ,"1,968.09",Dec-22
EREWASH BOROUGH COUNCIL,18107,Public Conveniences           ,Agency Staff                  ,14-Nov-2022,EXTRA PERSONNEL LTD                     ,500.00,Dec-22
EREWASH BOROUGH COUNCIL,17777,Public Conveniences           ,Agency Staff                  ,31-Oct-2022,EXTRA PERSONNEL LTD                     ,500.00,Dec-22
EREWASH BOROUGH COUNCIL,18005,Public Conveniences           ,Agency Staff                  ,07-Nov-2022,EXTRA PERSONNEL LTD                     ,500.00,Dec-22
EREWASH BOROUGH COUNCIL,18225,Public Conveniences           ,Agency Staff                  ,18-Nov-2022,EXTRA PERSONNEL LTD                     ,500.00,Dec-22
EREWASH BOROUGH COUNCIL,18105,Street Scene                  ,Agency Staff                  ,14-Nov-2022,EXTRA PERSONNEL LTD                     ,"1,502.97",Dec-22
EREWASH BOROUGH COUNCIL,18107,Street Scene                  ,Agency Staff                  ,14-Nov-2022,EXTRA PERSONNEL LTD                     ,"2,002.40",Dec-22
EREWASH BOROUGH COUNCIL,17477,Street Scene                  ,Agency Staff                  ,20-Oct-2022,EXTRA PERSONNEL LTD                     ,262.51,Dec-22
EREWASH BOROUGH COUNCIL,17777,Street Scene                  ,Agency Staff                  ,31-Oct-2022,EXTRA PERSONNEL LTD                     ,"1,319.63",Dec-22
EREWASH BOROUGH COUNCIL,18008,Street Scene                  ,Agency Staff                  ,07-Nov-2022,EXTRA PERSONNEL LTD                     ,"1,789.12",Dec-22
EREWASH BOROUGH COUNCIL,18005,Street Scene                  ,Agency Staff                  ,07-Nov-2022,EXTRA PERSONNEL LTD                     ,"1,552.26",Dec-22
EREWASH BOROUGH COUNCIL,17779,Street Scene                  ,Agency Staff                  ,31-Oct-2022,EXTRA PERSONNEL LTD                     ,"2,257.98",Dec-22
EREWASH BOROUGH COUNCIL,18226,Street Scene                  ,Agency Staff                  ,18-Nov-2022,EXTRA PERSONNEL LTD                     ,"1,558.77",Dec-22
EREWASH BOROUGH COUNCIL,18225,Street Scene                  ,Agency Staff                  ,18-Nov-2022,EXTRA PERSONNEL LTD                     ,"1,805.59",Dec-22
EREWASH BOROUGH COUNCIL,18669,Street Scene                  ,Agency Staff                  ,25-Nov-2022,EXTRA PERSONNEL LTD                     ,"1,677.84",Dec-22
EREWASH BOROUGH COUNCIL,18668,Street Scene                  ,Agency Staff                  ,25-Nov-2022,EXTRA PERSONNEL LTD                     ,"1,968.08",Dec-22
EREWASH BOROUGH COUNCIL,17778,Long Eaton Market             ,Agency Staff                  ,31-Oct-2022,EXTRA PERSONNEL LTD                     ,182.25,Dec-22
EREWASH BOROUGH COUNCIL,17097,Long Eaton Market             ,Agency Staff                  ,18-Oct-2022,EXTRA PERSONNEL LTD                     ,243.00,Dec-22
EREWASH BOROUGH COUNCIL,17326,Long Eaton Market             ,Agency Staff                  ,25-Oct-2022,EXTRA PERSONNEL LTD                     ,243.00,Dec-22
EREWASH BOROUGH COUNCIL,18006,Long Eaton Market             ,Agency Staff                  ,07-Nov-2022,EXTRA PERSONNEL LTD                     ,243.00,Dec-22
EREWASH BOROUGH COUNCIL,18227,Long Eaton Market             ,Agency Staff                  ,01-Nov-2022,EXTRA PERSONNEL LTD                     ,243.00,Dec-22
EREWASH BOROUGH COUNCIL,17023,Long Eaton Market             ,Agency Staff                  ,12-Oct-2022,EXTRA PERSONNEL LTD                     ,291.60,Dec-22
EREWASH BOROUGH COUNCIL,17778,Ilkeston Market               ,Agency Staff                  ,31-Oct-2022,EXTRA PERSONNEL LTD                     ,121.50,Dec-22
EREWASH BOROUGH COUNCIL,17097,Ilkeston Market               ,Agency Staff                  ,18-Oct-2022,EXTRA PERSONNEL LTD                     ,162.00,Dec-22
EREWASH BOROUGH COUNCIL,17326,Ilkeston Market               ,Agency Staff                  ,25-Oct-2022,EXTRA PERSONNEL LTD                     ,162.00,Dec-22
EREWASH BOROUGH COUNCIL,18006,Ilkeston Market               ,Agency Staff                  ,07-Nov-2022,EXTRA PERSONNEL LTD                     ,162.00,Dec-22
EREWASH BOROUGH COUNCIL,18227,Ilkeston Market               ,Agency Staff                  ,01-Nov-2022,EXTRA PERSONNEL LTD                     ,162.00,Dec-22
EREWASH BOROUGH COUNCIL,17023,Ilkeston Market               ,Agency Staff                  ,12-Oct-2022,EXTRA PERSONNEL LTD                     ,194.40,Dec-22
EREWASH BOROUGH COUNCIL,18232,Civic Accommodation Ilkeston  ,Agency Staff                  ,18-Nov-2022,EXTRA PERSONNEL LTD                     ,255.42,Dec-22
EREWASH BOROUGH COUNCIL,18901,Accountancy                   ,Reference Literature and Publi,29-Nov-2022,FINANCIAL REPORTING COUNCIL             ,402.00,Dec-22
EREWASH BOROUGH COUNCIL,18501,Trees Hedges Local Nature Res ,Materials/Consumables         ,16-Nov-2022,FRANK P MATTHEWS LTD                    ,"1,025.00",Dec-22
EREWASH BOROUGH COUNCIL,18501,Trees Hedges Local Nature Res ,Materials/Consumables         ,16-Nov-2022,FRANK P MATTHEWS LTD                    ,"1,650.00",Dec-22
EREWASH BOROUGH COUNCIL,18501,Trees Hedges Local Nature Res ,Materials/Consumables         ,16-Nov-2022,FRANK P MATTHEWS LTD                    ,"1,325.00",Dec-22
EREWASH BOROUGH COUNCIL,18501,Street Scene                  ,Transport Insurance           ,16-Nov-2022,FRANK P MATTHEWS LTD                    ,625.00,Dec-22
EREWASH BOROUGH COUNCIL,19171,Homelessness                  ,Fees Costs and Expenses       ,28-Nov-2022,FREEDOM COMMUNITY PROJECT               ,"1,681.13",Dec-22
EREWASH BOROUGH COUNCIL,18243,Car Parking                   ,Planned Preventative Maintenan,15-Nov-2022,GEO POLLUTION TECHNOLOGIES (UK) LTD     ,"1,260.00",Dec-22
EREWASH BOROUGH COUNCIL,18504,Reprographics                 ,Stationery                    ,21-Nov-2022,GETTY IMAGES INTERNATIONAL              ,"2,652.00",Dec-22
EREWASH BOROUGH COUNCIL,18542,Green Space                   ,Materials/Consumables         ,25-Nov-2022,GROUND GUARDS                           ,"1,916.00",Dec-22
EREWASH BOROUGH COUNCIL,18078,Play Areas                    ,Materials/Consumables         ,08-Nov-2022,HAGSSMP                                 ,327.76,Dec-22
EREWASH BOROUGH COUNCIL,17971,Democratic Representation     ,Hire Charges                  ,10-Nov-2022,HALL'S TRAVEL                           ,320.00,Dec-22
EREWASH BOROUGH COUNCIL,18882,Democratic Representation     ,Hire Charges                  ,07-Dec-2022,HALL'S TRAVEL                           ,320.00,Dec-22
EREWASH BOROUGH COUNCIL,19193,Homelessness                  ,Spend to Save                 ,20-Dec-2022,HENRYS SIMMS LETTING AGENTS  LIMITED    ,"1,250.00",Dec-22
EREWASH BOROUGH COUNCIL,18688,Personnel                     ,Apprenticeship Levy           ,19-Dec-2022,HMRC CUMBERNAULD                        ,"3,449.00",Dec-22
EREWASH BOROUGH COUNCIL,18688,Personnel                     ,Apprenticeship Levy           ,19-Dec-2022,HMRC CUMBERNAULD                        ,"1,250.00",Dec-22
EREWASH BOROUGH COUNCIL,18686,EBC Balance Sheet             ,Payroll Coll Acc - Income Tax ,19-Dec-2022,HMRC CUMBERNAULD                        ,766.80,Dec-22
EREWASH BOROUGH COUNCIL,18688,EBC Balance Sheet             ,Payroll Coll Acc - Income Tax ,19-Dec-2022,HMRC CUMBERNAULD                        ,"121,726.34",Dec-22
EREWASH BOROUGH COUNCIL,18686,EBC Balance Sheet             ,Payroll Coll Acc National Ins ,19-Dec-2022,HMRC CUMBERNAULD                        ,850.14,Dec-22
EREWASH BOROUGH COUNCIL,18688,EBC Balance Sheet             ,Payroll Coll Acc National Ins ,19-Dec-2022,HMRC CUMBERNAULD                        ,"163,012.37",Dec-22
EREWASH BOROUGH COUNCIL,18688,EBC Balance Sheet             ,Payroll Coll Acc Student Loan ,19-Dec-2022,HMRC CUMBERNAULD                        ,"4,354.00",Dec-22
EREWASH BOROUGH COUNCIL,17872,Legal Services                ,Agency Staff                  ,08-Nov-2022,HR ESSENTIALS LIMITED                   ,400.00,Dec-22
EREWASH BOROUGH COUNCIL,17603,Development Control           ,Consultants Fees              ,31-Oct-2022,IDOM MEREBROOK LTD                      ,375.00,Dec-22
EREWASH BOROUGH COUNCIL,18929,Revenues and Benefits         ,Software Licences             ,30-Nov-2022,IEG4 LIMITED                            ,"139,315.00",Dec-22
EREWASH BOROUGH COUNCIL,18900,Non-domestic Rates Collection ,Fees Costs and Expenses       ,07-Dec-2022,INFORM CPI LTD                          ,"2,000.00",Dec-22
EREWASH BOROUGH COUNCIL,18730,Planning                      ,Structural Property Works     ,30-Nov-2022,INNES ENGLAND LTD                       ,"2,100.00",Dec-22
EREWASH BOROUGH COUNCIL,18293,Personnel and ICT             ,Software and Implementation   ,19-Nov-2022,INSIGHT DIRECT (UK) LTD                 ,847.35,Dec-22
EREWASH BOROUGH COUNCIL,18293,Personnel and ICT             ,Software and Implementation   ,19-Nov-2022,INSIGHT DIRECT (UK) LTD                 ,580.38,Dec-22
EREWASH BOROUGH COUNCIL,18293,Personnel and ICT             ,Software and Implementation   ,19-Nov-2022,INSIGHT DIRECT (UK) LTD                 ,"1,897.20",Dec-22
EREWASH BOROUGH COUNCIL,18496,Car Parking                   ,Contracted Services           ,22-Nov-2022,INTERNATIONAL PARKING SYSTEMS UK LTD    ,"1,345.00",Dec-22
EREWASH BOROUGH COUNCIL,18701,Car Parking                   ,Credit/Debit Card Charges     ,30-Nov-2022,INTERNATIONAL PARKING SYSTEMS UK LTD    ,"3,014.32",Dec-22
EREWASH BOROUGH COUNCIL,18255,Fireworks Display             ,Equipment for Hire            ,18-Nov-2022,J.C.BALLS & SONS                        ,"1,960.00",Dec-22
EREWASH BOROUGH COUNCIL,18085,Homelessness                  ,Agency Staff                  ,15-Nov-2022,JAMES ANDREWS RECRUITMENT SOLUTIONS     ,"1,202.25",Dec-22
EREWASH BOROUGH COUNCIL,18326,Homelessness                  ,Agency Staff                  ,23-Nov-2022,JAMES ANDREWS RECRUITMENT SOLUTIONS     ,"1,202.25",Dec-22
EREWASH BOROUGH COUNCIL,18574,Homelessness                  ,Agency Staff                  ,30-Nov-2022,JAMES ANDREWS RECRUITMENT SOLUTIONS     ,"1,270.95",Dec-22
EREWASH BOROUGH COUNCIL,17819,Household Waste Collection    ,Bins                          ,03-Nov-2022,KEYTRACKER LIMITED                      ,357.17,Dec-22
EREWASH BOROUGH COUNCIL,18715,EBC Balance Sheet             ,Childcare Salary Sacrifice    ,05-Dec-2022,KIDDIVOUCHERS LTD                       ,533.00,Dec-22
EREWASH BOROUGH COUNCIL,18683,Front Line Support Services   ,Security                      ,30-Nov-2022,KINGS ARMOURED SECURITY SERVICES        ,533.50,Dec-22
EREWASH BOROUGH COUNCIL,18684,Car Parking                   ,Contracted Services           ,30-Nov-2022,KINGS ARMOURED SECURITY SERVICES        ,"1,592.10",Dec-22
EREWASH BOROUGH COUNCIL,18808,Community Grants              ,Project Grants                ,07-Dec-2022,KIRK HALLAM COMMUNITY HALL ASSOCIATION. ,360.00,Dec-22
EREWASH BOROUGH COUNCIL,18087,Green Space                   ,Materials/Consumables         ,04-Nov-2022,KRM BUILDING SUPPLIES LTD               ,921.86,Dec-22
EREWASH BOROUGH COUNCIL,18465,Green Space                   ,Materials/Consumables         ,25-Nov-2022,KRM BUILDING SUPPLIES LTD               ,376.92,Dec-22
EREWASH BOROUGH COUNCIL,18727,Green Space                   ,Materials/Consumables         ,16-Nov-2022,LBS WORLDWIDE LTD                       ,"1,901.76",Dec-22
EREWASH BOROUGH COUNCIL,18768,Green Space                   ,General Equipment             ,23-Nov-2022,LEDAM MAINTENANCE SUPPLIES              ,436.84,Dec-22
EREWASH BOROUGH COUNCIL,18778,Commissioned Projects         ,Project Management            ,29-Nov-2022,LEGACY LEISURE LTD                      ,303.00,Dec-22
EREWASH BOROUGH COUNCIL,18777,Commissioned Projects         ,Project Management            ,29-Nov-2022,LEGACY LEISURE LTD                      ,"1,551.00",Dec-22
EREWASH BOROUGH COUNCIL,17820,Christmas Lights              ,Planned Preventative Maintenan,02-Nov-2022,LEISURE LITES LIMTED                    ,"10,000.00",Dec-22
EREWASH BOROUGH COUNCIL,18810,Hackney Carriage Private Hire ,Software Licences             ,06-Dec-2022,LICENCE CHECK LTD                       ,"1,200.00",Dec-22
EREWASH BOROUGH COUNCIL,19145,Treasury and Bank Charges     ,Bank Charges                  ,12-Dec-2022,LLOYDS BANK PLC                         ,894.39,Dec-22
EREWASH BOROUGH COUNCIL,18678,Household Waste Collection    ,Tyres                         ,30-Nov-2022,LODGE TYRE COMPANY LTD                  ,"2,411.75",Dec-22
EREWASH BOROUGH COUNCIL,18678,Trade Waste                   ,Tyres                         ,30-Nov-2022,LODGE TYRE COMPANY LTD                  ,332.00,Dec-22
EREWASH BOROUGH COUNCIL,18678,Kerbside Recycling Collection ,Tyres                         ,30-Nov-2022,LODGE TYRE COMPANY LTD                  ,564.00,Dec-22
EREWASH BOROUGH COUNCIL,18678,Green Space                   ,Tyres                         ,30-Nov-2022,LODGE TYRE COMPANY LTD                  ,192.00,Dec-22
EREWASH BOROUGH COUNCIL,18678,Street Scene                  ,Tyres                         ,30-Nov-2022,LODGE TYRE COMPANY LTD                  ,369.00,Dec-22
EREWASH BOROUGH COUNCIL,18678,Neighbourhood Wardens         ,Tyres                         ,30-Nov-2022,LODGE TYRE COMPANY LTD                  ,62.70,Dec-22
EREWASH BOROUGH COUNCIL,18300,Kerbside Recycling Collection ,General Equipment             ,21-Nov-2022,MAIN MAN SUPPLIES LTD                   ,644.69,Dec-22
EREWASH BOROUGH COUNCIL,18473,Community Safety              ,Grants and Subscriptions      ,01-Jul-2022,MALLARD CONSULTANCY LTD                 ,490.00,Dec-22
EREWASH BOROUGH COUNCIL,18473,Basic Command Unit            ,Project Grants                ,01-Jul-2022,MALLARD CONSULTANCY LTD                 ,500.00,Dec-22
EREWASH BOROUGH COUNCIL,18708,,,30-Nov-2022,MARSTON HOLDINGS LIMITED                ,292.84,Dec-22
EREWASH BOROUGH COUNCIL,17730,Building Control - Fee Earning,Agency Staff                  ,02-Nov-2022,MATCHTECH GROUP (UK) LIMITED            ,825.00,Dec-22
EREWASH BOROUGH COUNCIL,17733,Building Control - Fee Earning,Agency Staff                  ,02-Nov-2022,MATCHTECH GROUP (UK) LIMITED            ,990.00,Dec-22
EREWASH BOROUGH COUNCIL,17731,Building Control - Fee Earning,Agency Staff                  ,02-Nov-2022,MATCHTECH GROUP (UK) LIMITED            ,"1,650.00",Dec-22
EREWASH BOROUGH COUNCIL,17974,Building Control - Fee Earning,Agency Staff                  ,10-Nov-2022,MATCHTECH GROUP (UK) LIMITED            ,715.00,Dec-22
EREWASH BOROUGH COUNCIL,17978,Building Control - Fee Earning,Agency Staff                  ,10-Nov-2022,MATCHTECH GROUP (UK) LIMITED            ,990.00,Dec-22
EREWASH BOROUGH COUNCIL,17975,Building Control - Fee Earning,Agency Staff                  ,10-Nov-2022,MATCHTECH GROUP (UK) LIMITED            ,"1,650.00",Dec-22
EREWASH BOROUGH COUNCIL,18201,Building Control - Fee Earning,Agency Staff                  ,17-Nov-2022,MATCHTECH GROUP (UK) LIMITED            ,935.00,Dec-22
EREWASH BOROUGH COUNCIL,18199,Building Control - Fee Earning,Agency Staff                  ,17-Nov-2022,MATCHTECH GROUP (UK) LIMITED            ,990.00,Dec-22
EREWASH BOROUGH COUNCIL,18203,Building Control - Fee Earning,Agency Staff                  ,17-Nov-2022,MATCHTECH GROUP (UK) LIMITED            ,"1,650.00",Dec-22
EREWASH BOROUGH COUNCIL,18427,Building Control - Fee Earning,Agency Staff                  ,24-Nov-2022,MATCHTECH GROUP (UK) LIMITED            ,825.00,Dec-22
EREWASH BOROUGH COUNCIL,18430,Building Control - Fee Earning,Agency Staff                  ,24-Nov-2022,MATCHTECH GROUP (UK) LIMITED            ,825.00,Dec-22
EREWASH BOROUGH COUNCIL,18434,Building Control - Fee Earning,Agency Staff                  ,24-Nov-2022,MATCHTECH GROUP (UK) LIMITED            ,990.00,Dec-22
EREWASH BOROUGH COUNCIL,18429,Building Control - Fee Earning,Agency Staff                  ,24-Nov-2022,MATCHTECH GROUP (UK) LIMITED            ,"1,650.00",Dec-22
EREWASH BOROUGH COUNCIL,18696,Building Control - Fee Earning,Agency Staff                  ,01-Dec-2022,MATCHTECH GROUP (UK) LIMITED            ,990.00,Dec-22
EREWASH BOROUGH COUNCIL,18694,Building Control - Fee Earning,Agency Staff                  ,01-Dec-2022,MATCHTECH GROUP (UK) LIMITED            ,"1,650.00",Dec-22
EREWASH BOROUGH COUNCIL,18102,Property and Estates          ,Repairs and Maintenance       ,16-Nov-2022,MDB PLUMBING (NOTTM) LTD                ,636.82,Dec-22
EREWASH BOROUGH COUNCIL,18116,Property and Estates          ,Repairs and Maintenance       ,16-Nov-2022,MDB PLUMBING (NOTTM) LTD                ,686.14,Dec-22
EREWASH BOROUGH COUNCIL,18240,Property and Estates          ,Repairs and Maintenance       ,16-Nov-2022,MDB PLUMBING (NOTTM) LTD                ,"1,041.00",Dec-22
EREWASH BOROUGH COUNCIL,18714,Property and Estates          ,Reactive Maintenance          ,03-Dec-2022,MDB PLUMBING (NOTTM) LTD                ,284.21,Dec-22
EREWASH BOROUGH COUNCIL,17824,Occupational Health & Welfare ,Occupational Health Service   ,02-Nov-2022,MEDIGOLD HEALTH CONSULTANCY LIMITED     ,"1,239.00",Dec-22
EREWASH BOROUGH COUNCIL,17838,Play Areas                    ,Materials/Consumables         ,04-Nov-2022,NIBRA SIGNS LTD                         ,254.04,Dec-22
EREWASH BOROUGH COUNCIL,18299,Economic Development          ,Project Grants                ,14-Nov-2022,NODE BUILDING CONSULTANCY LTD           ,"4,225.00",Dec-22
EREWASH BOROUGH COUNCIL,18302,Street Scene                  ,Materials/Consumables         ,21-Nov-2022,ORIGIN AMENITY SOLUTIONS                ,"1,346.25",Dec-22
EREWASH BOROUGH COUNCIL,17962,Infec Disease & Food Poisoning,Fees Costs and Expenses       ,09-Nov-2022,OSBORNE RICHARDSON                      ,300.00,Dec-22
EREWASH BOROUGH COUNCIL,16767,Infec Disease & Food Poisoning,Fees Costs and Expenses       ,05-Oct-2022,OSBORNE RICHARDSON                      ,362.00,Dec-22
EREWASH BOROUGH COUNCIL,17440,Infec Disease & Food Poisoning,Fees Costs and Expenses       ,26-Oct-2022,OSBORNE RICHARDSON                      ,368.00,Dec-22
EREWASH BOROUGH COUNCIL,18436,Infec Disease & Food Poisoning,Contracted Services           ,23-Nov-2022,OYSTER PARTNERSHIP LTD                  ,308.74,Dec-22
EREWASH BOROUGH COUNCIL,18189,Infec Disease & Food Poisoning,Contracted Services           ,16-Nov-2022,OYSTER PARTNERSHIP LTD                  ,603.68,Dec-22
EREWASH BOROUGH COUNCIL,17963,Infec Disease & Food Poisoning,Contracted Services           ,09-Nov-2022,OYSTER PARTNERSHIP LTD                  ,609.20,Dec-22
EREWASH BOROUGH COUNCIL,17724,Infec Disease & Food Poisoning,Contracted Services           ,02-Nov-2022,OYSTER PARTNERSHIP LTD                  ,619.32,Dec-22
EREWASH BOROUGH COUNCIL,18665,Infec Disease & Food Poisoning,Contracted Services           ,30-Nov-2022,OYSTER PARTNERSHIP LTD                  ,600.00,Dec-22
EREWASH BOROUGH COUNCIL,18481,Arts Development              ,Special Events                ,12-Sep-2022,PARKSIDE HIGH CIC                       ,660.00,Dec-22
EREWASH BOROUGH COUNCIL,18807,Community Grants              ,Project Grants                ,07-Dec-2022,PARKSIDE HIGH CIC                       ,500.00,Dec-22
EREWASH BOROUGH COUNCIL,18578,Leisure Services              ,Contracted Services           ,21-Nov-2022,PARKWOOD LEISURE LTD                    ,"28,211.78",Dec-22
EREWASH BOROUGH COUNCIL,19183,Leisure Services              ,Contracted Services           ,20-Dec-2022,PARKWOOD LEISURE LTD                    ,"28,211.78",Dec-22
EREWASH BOROUGH COUNCIL,18564,EBC Balance Sheet             ,EBC Fit for Work Scheme       ,30-Nov-2022,PARKWOOD LEISURE LTD                    ,459.00,Dec-22
EREWASH BOROUGH COUNCIL,19176,EBC Balance Sheet             ,EBC Fit for Work Scheme       ,20-Dec-2022,PARKWOOD LEISURE LTD                    ,432.00,Dec-22
EREWASH BOROUGH COUNCIL,17837,Household Waste Collection    ,Repairs and Maintenance       ,02-Nov-2022,PARTIC MOTOR SPARES LTD                 ,510.00,Dec-22
EREWASH BOROUGH COUNCIL,18753,Household Waste Collection    ,Repairs and Maintenance       ,28-Nov-2022,PARTIC MOTOR SPARES LTD                 ,320.00,Dec-22
EREWASH BOROUGH COUNCIL,18754,Household Waste Collection    ,Repairs and Maintenance       ,30-Nov-2022,PARTIC MOTOR SPARES LTD                 ,269.97,Dec-22
EREWASH BOROUGH COUNCIL,18514,Trade Waste                   ,Repairs and Maintenance       ,14-Nov-2022,PARTIC MOTOR SPARES LTD                 ,270.90,Dec-22
EREWASH BOROUGH COUNCIL,18530,Green Space                   ,Repairs and Maintenance       ,25-Nov-2022,PARTSPLUS                               ,396.39,Dec-22
EREWASH BOROUGH COUNCIL,18292,Street Scene                  ,Repairs and Maintenance       ,19-Nov-2022,PARTSPLUS                               ,354.92,Dec-22
EREWASH BOROUGH COUNCIL,17833,Dog Control                   ,Repairs and Maintenance       ,04-Nov-2022,PARTSPLUS                               ,258.18,Dec-22
EREWASH BOROUGH COUNCIL,19340,Treasury and Bank Charges     ,Credit/Debit Card Charges     ,13-Dec-2022,PAY 360 LIMITED (CAPITA)                ,"4,983.63",Dec-22
EREWASH BOROUGH COUNCIL,18534,Household Waste Collection    ,Repairs and Maintenance       ,25-Nov-2022,PB AUTO ELECTRICS                       ,353.29,Dec-22
EREWASH BOROUGH COUNCIL,18534,Kerbside Recycling Collection ,Repairs and Maintenance       ,25-Nov-2022,PB AUTO ELECTRICS                       ,252.37,Dec-22
EREWASH BOROUGH COUNCIL,18536,Kerbside Recycling Collection ,Repairs and Maintenance       ,28-Nov-2022,PB AUTO ELECTRICS                       ,980.67,Dec-22
EREWASH BOROUGH COUNCIL,18571,Fireworks Display             ,Contracted Services           ,06-Nov-2022,PB FIRE LTD                             ,370.00,Dec-22
EREWASH BOROUGH COUNCIL,18548,General Entertainment         ,Special Events                ,25-Nov-2022,PB FIRE LTD                             ,330.00,Dec-22
EREWASH BOROUGH COUNCIL,18548,General Entertainment         ,Special Events                ,25-Nov-2022,PB FIRE LTD                             ,330.00,Dec-22
EREWASH BOROUGH COUNCIL,18511,General Entertainment         ,Equipment for Hire            ,25-Nov-2022,PB FIRE LTD                             ,650.00,Dec-22
EREWASH BOROUGH COUNCIL,18249,Civic Duties Hospitality      ,Remembrance Services          ,15-Nov-2022,PB FIRE LTD                             ,970.00,Dec-22
EREWASH BOROUGH COUNCIL,18435,Property and Estates          ,Repairs and Maintenance       ,24-Nov-2022,PEEL ELECTRICAL LTD                     ,661.40,Dec-22
EREWASH BOROUGH COUNCIL,18693,Petersham Hall                ,PPM Mechanical and Equipment  ,01-Dec-2022,PEEL ELECTRICAL LTD                     ,546.00,Dec-22
EREWASH BOROUGH COUNCIL,18552,Economic Development          ,Project Grants                ,28-Nov-2022,PER CONSULTING LTD                      ,"13,500.00",Dec-22
EREWASH BOROUGH COUNCIL,19345,Planning                      ,External Property Works       ,05-Aug-2022,PER CONSULTING LTD                      ,"2,500.00",Dec-22
EREWASH BOROUGH COUNCIL,18924,Green Space                   ,Road Taxes                    ,01-Dec-2022,PERRYS                                  ,345.00,Dec-22
EREWASH BOROUGH COUNCIL,18925,Regulatory and Housing Service,Vehicles                      ,01-Dec-2022,PERRYS                                  ,"34,132.85",Dec-22
EREWASH BOROUGH COUNCIL,18925,Regulatory and Housing Service,Vehicles                      ,01-Dec-2022,PERRYS                                  ,345.00,Dec-22
EREWASH BOROUGH COUNCIL,18924,Regulatory and Housing Service,Vehicles                      ,01-Dec-2022,PERRYS                                  ,"37,293.25",Dec-22
EREWASH BOROUGH COUNCIL,18256,Green Space                   ,Materials/Consumables         ,02-Nov-2022,PETERSFIELD GROWING MEDIUM LTD          ,"1,622.60",Dec-22
EREWASH BOROUGH COUNCIL,19146,Green Space                   ,Materials/Consumables         ,12-Aug-2022,PETERSFIELD GROWING MEDIUM LTD          ,"4,341.60",Dec-22
EREWASH BOROUGH COUNCIL,17836,Fireworks Display             ,Stationery                    ,04-Nov-2022,PICTORIAL LTD                           ,380.00,Dec-22
EREWASH BOROUGH COUNCIL,18971,Civic Transport               ,Hire Charges                  ,30-Nov-2022,PINNACLE EXECUTIVE CARS LIMITED         ,"2,343.55",Dec-22
EREWASH BOROUGH COUNCIL,17492,EBC Balance Sheet             ,Elections                     ,01-Nov-2022,PORTAKABIN LTD                          ,"1,950.00",Dec-22
EREWASH BOROUGH COUNCIL,18705,Development Control           ,Planning Fees                 ,02-Dec-2022,PORTALPLANQUEST LTD                     ,462.00,Dec-22
EREWASH BOROUGH COUNCIL,18989,Development Control           ,Planning Fees                 ,12-Dec-2022,PORTALPLANQUEST LTD                     ,"9,702.00",Dec-22
EREWASH BOROUGH COUNCIL,17608,Economic Development          ,Contracted Services           ,01-Nov-2022,PROXIMITY FUTURES T/A ELEPHANT WIFI     ,303.33,Dec-22
EREWASH BOROUGH COUNCIL,18737,Economic Development          ,Contracted Services           ,01-Dec-2022,PROXIMITY FUTURES T/A ELEPHANT WIFI     ,303.33,Dec-22
EREWASH BOROUGH COUNCIL,18568,EBC Balance Sheet             ,Payroll Coll Acc - AVCS       ,30-Nov-2022,PRUDENTIAL                              ,696.00,Dec-22
EREWASH BOROUGH COUNCIL,19180,EBC Balance Sheet             ,Payroll Coll Acc - AVCS       ,20-Dec-2022,PRUDENTIAL                              ,696.00,Dec-22
EREWASH BOROUGH COUNCIL,19004,Trees Hedges Local Nature Res ,Contracted Services           ,31-Oct-2022,RAMMSANDERSON ECOLOGY LTD               ,270.00,Dec-22
EREWASH BOROUGH COUNCIL,18744,Trees Hedges Local Nature Res ,Contracted Services           ,30-Nov-2022,RAMMSANDERSON ECOLOGY LTD               ,"1,077.00",Dec-22
EREWASH BOROUGH COUNCIL,17738,Building Control Adv & Inform ,Contracted Services           ,01-Nov-2022,RANSOMWOOD ESTATES UK LIMITED           ,671.47,Dec-22
EREWASH BOROUGH COUNCIL,18909,Building Control Adv & Inform ,Contracted Services           ,01-Dec-2022,RANSOMWOOD ESTATES UK LIMITED           ,671.47,Dec-22
EREWASH BOROUGH COUNCIL,18497,Building Control - Fee Earning,Agency Staff                  ,11-Nov-2022,REED SPECIALIST RECRUITMENT LTD         ,685.76,Dec-22
EREWASH BOROUGH COUNCIL,18241,Building Control - Fee Earning,Agency Staff                  ,04-Nov-2022,REED SPECIALIST RECRUITMENT LTD         ,664.30,Dec-22
EREWASH BOROUGH COUNCIL,18812,Building Control - Fee Earning,Agency Staff                  ,25-Nov-2022,REED SPECIALIST RECRUITMENT LTD         ,690.42,Dec-22
EREWASH BOROUGH COUNCIL,18934,Building Control - Fee Earning,Agency Staff                  ,02-Dec-2022,REED SPECIALIST RECRUITMENT LTD         ,690.42,Dec-22
EREWASH BOROUGH COUNCIL,18880,Regulatory and Housing Service,Vehicles                      ,08-Dec-2022,RIVERSIDE TRUCK RENTAL                  ,"34,000.00",Dec-22
EREWASH BOROUGH COUNCIL,18880,Regulatory and Housing Service,Vehicles                      ,08-Dec-2022,RIVERSIDE TRUCK RENTAL                  ,314.00,Dec-22
EREWASH BOROUGH COUNCIL,18795,Regulatory and Housing Service,Vehicles                      ,30-Nov-2022,RIVERSIDE TRUCK RENTAL                  ,314.00,Dec-22
EREWASH BOROUGH COUNCIL,18692,Communications                ,General Publicity and Promotio,30-Nov-2022,ROYAL MAIL GROUP LTD.                   ,"5,087.97",Dec-22
EREWASH BOROUGH COUNCIL,18101,Revenues and Benefits         ,Postages                      ,09-Nov-2022,ROYAL MAIL GROUP LTD.                   ,756.67,Dec-22
EREWASH BOROUGH COUNCIL,18271,Revenues and Benefits         ,Postages                      ,16-Nov-2022,ROYAL MAIL GROUP LTD.                   ,668.28,Dec-22
EREWASH BOROUGH COUNCIL,16906,Revenues and Benefits         ,Postages                      ,06-Oct-2022,ROYAL MAIL GROUP LTD.                   ,360.00,Dec-22
EREWASH BOROUGH COUNCIL,18010,Revenues and Benefits         ,Postages                      ,07-Nov-2022,ROYAL MAIL GROUP LTD.                   ,360.00,Dec-22
EREWASH BOROUGH COUNCIL,17883,Revenues and Benefits         ,Postages                      ,02-Nov-2022,ROYAL MAIL GROUP LTD.                   ,"1,606.38",Dec-22
EREWASH BOROUGH COUNCIL,18479,Revenues and Benefits         ,Postages                      ,23-Nov-2022,ROYAL MAIL GROUP LTD.                   ,843.44,Dec-22
EREWASH BOROUGH COUNCIL,18691,Revenues and Benefits         ,Postages                      ,30-Nov-2022,ROYAL MAIL GROUP LTD.                   ,"2,390.18",Dec-22
EREWASH BOROUGH COUNCIL,18011,EBC Balance Sheet             ,Elections                     ,08-Nov-2022,ROYAL MAIL GROUP LTD.                   ,664.07,Dec-22
EREWASH BOROUGH COUNCIL,19213,Licensing - Health Services   ,Veterinary Fees               ,12-Dec-2022,SCARSDALE VETS                          ,480.60,Dec-22
EREWASH BOROUGH COUNCIL,19213,Licensing - Health Services   ,Veterinary Fees               ,12-Dec-2022,SCARSDALE VETS                          ,400.50,Dec-22
EREWASH BOROUGH COUNCIL,17870,Green Space                   ,Metered Water                 ,01-Nov-2022,SCOTTISH WATER BUSINESS STREAM LIMITED  ,"7,318.43",Dec-22
EREWASH BOROUGH COUNCIL,18911,Green Space                   ,Metered Water                 ,01-Dec-2022,SCOTTISH WATER BUSINESS STREAM LIMITED  ,907.23,Dec-22
EREWASH BOROUGH COUNCIL,17870,Allotments                    ,Metered Water                 ,01-Nov-2022,SCOTTISH WATER BUSINESS STREAM LIMITED  ,"4,624.16",Dec-22
EREWASH BOROUGH COUNCIL,18911,Allotments                    ,Metered Water                 ,01-Dec-2022,SCOTTISH WATER BUSINESS STREAM LIMITED  ,461.09,Dec-22
EREWASH BOROUGH COUNCIL,17870,Public Conveniences           ,Metered Water                 ,01-Nov-2022,SCOTTISH WATER BUSINESS STREAM LIMITED  ,"3,060.46",Dec-22
EREWASH BOROUGH COUNCIL,18911,Public Conveniences           ,Metered Water                 ,01-Dec-2022,SCOTTISH WATER BUSINESS STREAM LIMITED  ,821.37,Dec-22
EREWASH BOROUGH COUNCIL,17870,Merlin Way Depot              ,Metered Water                 ,01-Nov-2022,SCOTTISH WATER BUSINESS STREAM LIMITED  ,"1,813.13",Dec-22
EREWASH BOROUGH COUNCIL,18911,Merlin Way Depot              ,Metered Water                 ,01-Dec-2022,SCOTTISH WATER BUSINESS STREAM LIMITED  ,"1,078.99",Dec-22
EREWASH BOROUGH COUNCIL,17870,Civic Accommodation Ilkeston  ,Metered Water                 ,01-Nov-2022,SCOTTISH WATER BUSINESS STREAM LIMITED  ,625.61,Dec-22
EREWASH BOROUGH COUNCIL,18911,Civic Accommodation Ilkeston  ,Metered Water                 ,01-Dec-2022,SCOTTISH WATER BUSINESS STREAM LIMITED  ,304.38,Dec-22
EREWASH BOROUGH COUNCIL,17870,Toll Bar House                ,Metered Water                 ,01-Nov-2022,SCOTTISH WATER BUSINESS STREAM LIMITED  ,615.31,Dec-22
EREWASH BOROUGH COUNCIL,18911,Toll Bar House                ,Metered Water                 ,01-Dec-2022,SCOTTISH WATER BUSINESS STREAM LIMITED  ,"3,695.16",Dec-22
EREWASH BOROUGH COUNCIL,18033,Shopmobility - Ilkeston       ,Maintenance of Equipment      ,08-Nov-2022,SEACROFT MOBILITY LTD                   ,400.00,Dec-22
EREWASH BOROUGH COUNCIL,18033,Shopmobility - Ilkeston       ,Materials/Consumables         ,08-Nov-2022,SEACROFT MOBILITY LTD                   ,55.00,Dec-22
EREWASH BOROUGH COUNCIL,18033,Shopmobility - Long Eaton     ,Maintenance of Equipment      ,08-Nov-2022,SEACROFT MOBILITY LTD                   ,125.00,Dec-22
EREWASH BOROUGH COUNCIL,18033,Shopmobility - Long Eaton     ,Materials/Consumables         ,08-Nov-2022,SEACROFT MOBILITY LTD                   ,55.00,Dec-22
EREWASH BOROUGH COUNCIL,18503,Homelessness                  ,Fees Costs and Expenses       ,15-Nov-2022,SHELTER TRAINING                        ,430.00,Dec-22
EREWASH BOROUGH COUNCIL,18959,ICT Support Services          ,Security                      ,22-Nov-2022,SOFTCAT LTD                             ,"7,244.43",Dec-22
EREWASH BOROUGH COUNCIL,18785,Director of Resources         ,Agency Staff                  ,05-Dec-2022,SOLACE IN BUSINESS                      ,"19,800.00",Dec-22
EREWASH BOROUGH COUNCIL,18310,Green Space                   ,Materials/Consumables         ,19-Nov-2022,STANTON RECYCLING LIMITED               ,722.40,Dec-22
EREWASH BOROUGH COUNCIL,18793,Green Space                   ,Materials/Consumables         ,30-Nov-2022,STANTON RECYCLING LIMITED               ,409.60,Dec-22
EREWASH BOROUGH COUNCIL,18068,Household Waste Collection    ,Bins                          ,14-Nov-2022,STEELCRAFT FABRICATIONS                 ,340.00,Dec-22
EREWASH BOROUGH COUNCIL,17612,Household Waste Collection    ,Repairs and Maintenance       ,01-Nov-2022,STEELCRAFT FABRICATIONS                 ,310.00,Dec-22
EREWASH BOROUGH COUNCIL,18296,Green Space                   ,General Equipment             ,21-Nov-2022,STEELCRAFT FABRICATIONS                 ,725.00,Dec-22
EREWASH BOROUGH COUNCIL,18546,Green Space                   ,Materials/Consumables         ,28-Nov-2022,STEELCRAFT FABRICATIONS                 ,290.00,Dec-22
EREWASH BOROUGH COUNCIL,17611,Pedestrian Zones - Ilk and LE ,Reactive Maintenance          ,01-Nov-2022,STEELCRAFT FABRICATIONS                 ,330.00,Dec-22
EREWASH BOROUGH COUNCIL,18699,Corporate Health and Safety   ,Water Testing (Legionella)    ,30-Nov-2022,STERILIZING SERVICES LTD                ,"1,284.50",Dec-22
EREWASH BOROUGH COUNCIL,17736,Corporate Health and Safety   ,Water Testing (Legionella)    ,31-Oct-2022,STERILIZING SERVICES LTD                ,729.00,Dec-22
EREWASH BOROUGH COUNCIL,18325,Community Grants              ,Project Grants                ,23-Nov-2022,SUPPORT THROUGH SPORT                   ,500.00,Dec-22
EREWASH BOROUGH COUNCIL,18484,Sports Devt Coaching & Courses,Fees Costs and Expenses       ,30-Sep-2022,REDACTED PERSONAL DATA,338.00,Dec-22
EREWASH BOROUGH COUNCIL,19187,CCTV - Ilkeston and Long Eaton,Contracted Services           ,19-Oct-2022,SYNECTICS SECURITY LIMITED              ,"7,920.50",Dec-22
EREWASH BOROUGH COUNCIL,18058,Fireworks Display             ,Materials/Consumables         ,08-Nov-2022,T H HEATH  CONTRACTS  LTD               ,392.00,Dec-22
EREWASH BOROUGH COUNCIL,18239,Green Space                   ,Contracted Services           ,08-Nov-2022,T H HEATH  CONTRACTS  LTD               ,860.00,Dec-22
EREWASH BOROUGH COUNCIL,18783,Green Space                   ,Contracted Services           ,05-Dec-2022,T H HEATH  CONTRACTS  LTD               ,280.00,Dec-22
EREWASH BOROUGH COUNCIL,19360,Household Waste Collection    ,Repairs and Maintenance       ,10-Nov-2022,T P HOPWELL (BIRMINGHAM) LTD            ,"1,161.38",Dec-22
EREWASH BOROUGH COUNCIL,18526,Toll Bar House                ,Alarms Planned Maintenence    ,24-Nov-2022,TECSERV UK                              ,256.76,Dec-22
EREWASH BOROUGH COUNCIL,18948,EBC Balance Sheet             ,Fuel Store                    ,05-Dec-2022,TENNANTS DISTRIBUTION LTD               ,680.00,Dec-22
EREWASH BOROUGH COUNCIL,18720,Household Waste Collection    ,Repairs and Maintenance       ,30-Nov-2022,TERBERG MATEC UK                        ,316.34,Dec-22
EREWASH BOROUGH COUNCIL,18894,Planning Policy               ,Consultants Fees              ,25-Nov-2022,TETRA TECH LIMITED                      ,"4,850.00",Dec-22
EREWASH BOROUGH COUNCIL,19699,Transport Trading Account     ,Fuel                          ,31-Dec-2022,THE RIGHT FUELCARD COMPANY LTD          ,367.31,Dec-22
EREWASH BOROUGH COUNCIL,18881,Registration of Electors      ,Subscriptions                 ,01-Dec-2022,THOMSON REUTERS                         ,314.00,Dec-22
EREWASH BOROUGH COUNCIL,18930,Household Waste Collection    ,Training                      ,23-Nov-2022,THREESIXY LOGISTICS TRAINING & REC LTD  ,"1,075.00",Dec-22
EREWASH BOROUGH COUNCIL,18551,Trees Hedges Local Nature Res ,Contracted Services           ,28-Nov-2022,TOM RICHARDS TREE SERVICES              ,"2,050.00",Dec-22
EREWASH BOROUGH COUNCIL,18477,Trees Hedges Local Nature Res ,Contracted Services           ,17-Nov-2022,TOM RICHARDS TREE SERVICES              ,450.00,Dec-22
EREWASH BOROUGH COUNCIL,18218,Erewash Museum                ,Gas                           ,14-Nov-2022,TOTALENERGIES GAS & POWER LTD           ,292.14,Dec-22
EREWASH BOROUGH COUNCIL,18218,Civic Accommodation Long Eaton,Gas                           ,14-Nov-2022,TOTALENERGIES GAS & POWER LTD           ,753.79,Dec-22
EREWASH BOROUGH COUNCIL,18218,Civic Accommodation Ilkeston  ,Gas                           ,14-Nov-2022,TOTALENERGIES GAS & POWER LTD           ,"1,030.72",Dec-22
EREWASH BOROUGH COUNCIL,18218,Sandiacre Friesland Sports Ctr,Gas                           ,14-Nov-2022,TOTALENERGIES GAS & POWER LTD           ,315.68,Dec-22
EREWASH BOROUGH COUNCIL,18319,General Entertainment         ,Special Events                ,23-Nov-2022,TREVOR ARAM                             ,300.00,Dec-22
EREWASH BOROUGH COUNCIL,18319,General Entertainment         ,Special Events                ,23-Nov-2022,TREVOR ARAM                             ,300.00,Dec-22
EREWASH BOROUGH COUNCIL,18927,Homelessness                  ,Homelessness-Lease Properties ,05-Dec-2022,TRIO CARPETS TRADING AS UNITED CARPETS  ,735.00,Dec-22
EREWASH BOROUGH COUNCIL,19197,Homelessness                  ,Homelessness-Lease Properties ,05-Dec-2022,TRIO CARPETS TRADING AS UNITED CARPETS  ,479.17,Dec-22
EREWASH BOROUGH COUNCIL,18738,Household Waste Collection    ,General Equipment             ,23-Nov-2022,TRUTAC LTD                              ,400.00,Dec-22
EREWASH BOROUGH COUNCIL,18738,Green Space                   ,Repairs and Maintenance       ,23-Nov-2022,TRUTAC LTD                              ,400.00,Dec-22
EREWASH BOROUGH COUNCIL,18525,Green Space                   ,Materials/Consumables         ,23-Nov-2022,TUDOR ENVIRONMENTAL                     ,631.80,Dec-22
EREWASH BOROUGH COUNCIL,18284,Street Scene                  ,Materials/Consumables         ,17-Nov-2022,TUDOR ENVIRONMENTAL                     ,"1,803.76",Dec-22
EREWASH BOROUGH COUNCIL,19170,Homelessness                  ,Homelessness-Lease Properties ,19-Dec-2022,TUNTUM HOUSING ASSOCIATION.             ,"1,238.25",Dec-22
EREWASH BOROUGH COUNCIL,18566,EBC Balance Sheet             ,Payroll Coll Acc - Trade Union,30-Nov-2022,UNISON                                  ,348.80,Dec-22
EREWASH BOROUGH COUNCIL,19177,EBC Balance Sheet             ,Payroll Coll Acc - Trade Union,20-Dec-2022,UNISON                                  ,348.80,Dec-22
EREWASH BOROUGH COUNCIL,17782,Public Conveniences           ,Planned Preventative Maintenan,04-Nov-2022,V G STOKES & SONS.                      ,"1,409.00",Dec-22
EREWASH BOROUGH COUNCIL,18098,Property and Estates          ,Reactive Maintenance          ,15-Nov-2022,V G STOKES & SONS.                      ,625.00,Dec-22
EREWASH BOROUGH COUNCIL,17783,Property and Estates          ,Reactive Maintenance          ,04-Nov-2022,V G STOKES & SONS.                      ,286.00,Dec-22
EREWASH BOROUGH COUNCIL,18305,Property and Estates          ,Reactive Maintenance          ,22-Nov-2022,V G STOKES & SONS.                      ,"1,932.00",Dec-22
EREWASH BOROUGH COUNCIL,17783,Parks Changing Rooms          ,Planned Preventative Maintenan,04-Nov-2022,V G STOKES & SONS.                      ,"1,700.00",Dec-22
EREWASH BOROUGH COUNCIL,18960,Car Parking                   ,Reactive Maintenance          ,05-Dec-2022,VIA EAST MIDLANDS LTD                   ,"2,192.76",Dec-22
EREWASH BOROUGH COUNCIL,18910,Homelessness                  ,Temporary Accommodation       ,06-Dec-2022,VICTORIA PARK HOTEL                     ,"9,879.00",Dec-22
EREWASH BOROUGH COUNCIL,17871,Fireworks Display             ,Special Events                ,08-Nov-2022,VOCON TRAFFIC MANAGEMENT                ,"1,020.00",Dec-22
EREWASH BOROUGH COUNCIL,17871,Fireworks Display             ,Materials/Consumables         ,08-Nov-2022,VOCON TRAFFIC MANAGEMENT                ,50.00,Dec-22
EREWASH BOROUGH COUNCIL,18463,Communications                ,General Publicity and Promotio,25-Nov-2022,WARNER (MIDLANDS) PLC                   ,"7,821.84",Dec-22
EREWASH BOROUGH COUNCIL,18097,Erewash Museum                ,Exhibitions                   ,15-Nov-2022,WRIGHTWAY PRESSURE CLEANING SERVICES LTD,300.00,Dec-22
